[Event "Velká cena Novohradska - A"]
[Site "Nové Hrady, Czech Republic"]
[Date "2024.10.12"]
[Round "4.6"]
[White "Slonek, Richard"]
[Black "Polanský, Matěj"]
[Result "1-0"]
[TimeControl "2x20min+10s/tah"]
[WhiteFideId "23744553"]
[BlackFideId "23741872"]
[WhiteElo "1524"]
[BlackElo "1475"]

1. e4 {[%clk 00:20:17]} {[%emt 00:00:04]} c5 {[%clk 00:20:12]} {[%emt
00:00:08]} 2. d4 {[%clk 00:20:25]} {[%emt 00:00:02]} cxd4 {[%clk 00:20:13]}
{[%emt 00:00:09]} 3. c3 {[%clk 00:20:34]} d3 {[%clk 00:20:12]} {[%emt
00:00:12]} 4. c4 {[%clk 00:20:39]} {[%emt 00:00:05]} Nc6 {[%clk 00:20:11]}
{[%emt 00:00:11]} 5. Nc3 {[%clk 00:20:47]} {[%emt 00:00:03]} e6 {[%clk
00:20:13]} {[%emt 00:00:07]} 6. Bxd3 {[%clk 00:20:51]} {[%emt 00:00:06]} Be7
{[%clk 00:20:15]} {[%emt 00:00:08]} 7. Nf3 {[%clk 00:20:57]} {[%emt 00:00:04]}
d6 {[%clk 00:20:20]} {[%emt 00:00:05]} 8. Be3 {[%clk 00:20:59]} {[%emt
00:00:08]} b6 {[%clk 00:20:20]} {[%emt 00:00:09]} 9. Qd2 {[%clk 00:20:57]}
{[%emt 00:00:12]} a6 {[%clk 00:20:21]} {[%emt 00:00:09]} 10. O-O {[%clk
00:20:45]} {[%emt 00:00:23]} Bb7 {[%clk 00:20:27]} {[%emt 00:00:04]} 11. Rac1
{[%clk 00:19:57]} {[%emt 00:00:58]} Nf6 {[%clk 00:20:33]} {[%emt 00:00:05]} 12.
Na4 {[%clk 00:19:21]} {[%emt 00:00:45]} b5 {[%clk 00:18:48]} {[%emt 00:01:56]}
13. cxb5 {[%clk 00:19:28]} {[%emt 00:00:02]} axb5 {[%clk 00:18:53]} {[%emt
00:00:05]} 14. Bxb5 {[%clk 00:19:35]} {[%emt 00:00:03]} Rc8 {[%clk 00:17:42]}
{[%emt 00:01:21]} 15. Bxc6+ {[%clk 00:17:02]} {[%emt 00:02:43]} Bxc6 {[%clk
00:17:41]} {[%emt 00:00:10]} 16. Nb6 {[%clk 00:17:10]} Rc7 {[%clk 00:16:14]}
{[%emt 00:01:39]} 17. Qc2 {[%clk 00:16:19]} {[%emt 00:01:02]} O-O {[%clk
00:15:44]} {[%emt 00:00:40]} 18. Nd4 {[%clk 00:16:10]} {[%emt 00:00:18]} Rb7
{[%clk 00:14:49]} {[%emt 00:01:07]} 19. Nxc6 {[%clk 00:16:07]} {[%emt
00:00:12]} Qe8 {[%clk 00:14:36]} {[%emt 00:00:23]} 20. Nxe7+ {[%clk 00:15:52]}
{[%emt 00:00:25]} Qxe7 {[%clk 00:14:29]} {[%emt 00:00:17]} 21. Qc6 {[%clk
00:15:20]} {[%emt 00:00:41]} Rfb8 {[%clk 00:13:17]} {[%emt 00:01:21]} 22. a4
{[%clk 00:14:22]} {[%emt 00:01:10]} h6 {[%clk 00:12:16]} {[%emt 00:01:10]} 23.
a5 {[%clk 00:14:29]} {[%emt 00:00:04]} Nd7 {[%clk 00:11:51]} {[%emt 00:00:34]}
24. Nxd7 {[%clk 00:13:32]} {[%emt 00:01:07]} Rxd7 {[%clk 00:10:59]} {[%emt
00:01:03]} 25. a6 {[%clk 00:13:40]} {[%emt 00:00:02]} Rxb2 {[%clk 00:10:40]}
{[%emt 00:00:28]} 26. a7 {[%clk 00:13:42]} {[%emt 00:00:08]} Rxa7 {[%clk
00:09:50]} {[%emt 00:01:01]} 27. Bxa7 {[%clk 00:13:50]} {[%emt 00:00:02]} Qxa7
{[%clk 00:09:59]} {[%emt 00:00:02]} 28. Qxd6 {[%clk 00:13:38]} {[%emt
00:00:21]} Ra2 {[%clk 00:09:02]} {[%emt 00:01:08]} 29. Rb1 {[%clk 00:13:33]}
{[%emt 00:00:14]} Kh7 {[%clk 00:08:58]} {[%emt 00:00:13]} 30. Qb6 {[%clk
00:13:20]} {[%emt 00:00:24]} Qa3 {[%clk 00:08:17]} {[%emt 00:00:51]} 31. h3
{[%clk 00:13:17]} {[%emt 00:00:13]} Rc2 {[%clk 00:07:42]} {[%emt 00:00:45]} 32.
Qb3 {[%clk 00:13:11]} {[%emt 00:00:16]} Qc5 {[%clk 00:07:42]} {[%emt 00:00:08]}
33. e5 {[%clk 00:12:45]} {[%emt 00:00:38]} Rd2 {[%clk 00:07:32]} {[%emt
00:00:20]} 34. Qe3 {[%clk 00:12:34]} {[%emt 00:00:21]} Qa5 {[%clk 00:06:50]}
{[%emt 00:00:52]} 35. Qe4+ {[%clk 00:12:30]} {[%emt 00:00:14]} g6 {[%clk
00:06:34]} {[%emt 00:00:26]} 36. Qf4 {[%clk 00:12:32]} {[%emt 00:00:07]} Rd7
{[%clk 00:05:56]} {[%emt 00:00:48]} 37. Rfd1 {[%clk 00:12:25]} {[%emt
00:00:17]} Rc7 {[%clk 00:05:42]} {[%emt 00:00:25]} 38. Rb8 {[%clk 00:12:09]}
{[%emt 00:00:25]} Qa7 {[%clk 00:05:21]} {[%emt 00:00:32]} 39. Rbd8 {[%clk
00:12:00]} {[%emt 00:00:19]} Rc2 {[%clk 00:04:50]} {[%emt 00:00:40]} 40. Qf6
{[%clk 00:11:56]} {[%emt 00:00:14]} Qxf2+ {[%clk 00:03:39]} {[%emt 00:01:22]}
41. Qxf2 {[%clk 00:12:02]} {[%emt 00:00:04]} Rxf2 {[%clk 00:03:45]} {[%emt
00:00:04]} 42. Kxf2 {[%clk 00:12:10]} {[%emt 00:00:02]} g5 {[%clk 00:03:51]}
{[%emt 00:00:04]} 43. R1d7 {[%clk 00:12:18]} {[%emt 00:00:02]} Kg6 {[%clk
00:04:00]} 44. Rf8 {[%clk 00:12:27]} Kf5 {[%clk 00:04:04]} {[%emt 00:00:06]} 45.
Rfxf7+ {[%clk 00:12:34]} {[%emt 00:00:05]} Kxe5 {[%clk 00:04:12]} {[%emt
00:00:02]} 46. Ke3 {[%clk 00:12:42]} {[%emt 00:00:02]} g4 {[%clk 00:04:10]}
{[%emt 00:00:12]} 47. Rh7 {[%clk 00:12:47]} {[%emt 00:00:05]} gxh3 {[%clk
00:04:20]} {[%emt 00:00:09]} 48. gxh3 {[%clk 00:13:01]} {[%emt 00:00:06]} Kf6
{[%clk 00:04:14]} {[%emt 00:00:16]} 49. Rd4 {[%clk 00:12:59]} {[%emt 00:00:14]}
e5 {[%clk 00:04:15]} {[%emt 00:00:08]} 50. Re4 {[%clk 00:13:00]} {[%emt
00:00:09]} Kf5 {[%clk 00:04:11]} {[%emt 00:00:13]} 51. Rxe5+ {[%clk 00:12:57]}
{[%emt 00:00:14]} Kf6 {[%clk 00:03:47]} {[%emt 00:00:34]} 52. Rxh6+ {[%clk
00:13:04]} {[%emt 00:00:03]} Kg7 {[%clk 00:03:55]} {[%emt 00:00:02]} 53. Ra6
{[%clk 00:13:12]} {[%emt 00:00:02]} Kf8 {[%clk 00:03:57]} {[%emt 00:00:07]} 54.
Ra7 {[%clk 00:13:18]} {[%emt 00:00:04]} Kg8 {[%clk 00:03:55]} {[%emt 00:00:12]}
55. Re8# {[%clk 00:13:27]} {[%emt 00:00:02]} 1-0

[Event "Velká cena Novohradska - A"]
[Site "Nové Hrady, Czech Republic"]
[Date "2024.10.12"]
[Round "4.7"]
[White "Ponomarenko, Marko"]
[Black "Hejda, Ondřej"]
[Result "1/2-1/2"]
[TimeControl "2x20min+10s/tah"]
[WhiteFideId "23777931"]
[BlackFideId "23713623"]
[WhiteElo "1498"]
[BlackElo "1702"]

1. e4 {[%clk 00:20:18]} {[%emt 00:12:32]} d5 {[%clk 00:20:19]} {[%emt
00:00:02]} 2. exd5 {[%clk 00:20:26]} {[%emt 00:00:02]} Qxd5 {[%clk 00:20:27]}
{[%emt 00:00:01]} 3. Nc3 {[%clk 00:20:35]} {[%emt 00:00:02]} Qa5 {[%clk
00:20:34]} {[%emt 00:00:04]} 4. d4 {[%clk 00:20:43]} c6 {[%clk 00:20:39]}
{[%emt 00:00:04]} 5. Bd2 {[%clk 00:20:49]} {[%emt 00:00:04]} Bf5 {[%clk
00:19:55]} {[%emt 00:00:55]} 6. Bc4 {[%clk 00:20:51]} {[%emt 00:00:08]} e6
{[%clk 00:19:45]} {[%emt 00:00:21]} 7. Nf3 {[%clk 00:20:48]} {[%emt 00:00:12]}
Qc7 {[%clk 00:19:25]} {[%emt 00:00:30]} 8. O-O {[%clk 00:20:49]} {[%emt
00:00:09]} Bd6 {[%clk 00:19:21]} {[%emt 00:00:15]} 9. Re1 {[%clk 00:19:49]}
{[%emt 00:01:09]} Nf6 {[%clk 00:19:10]} {[%emt 00:00:20]} 10. Bg5 {[%clk
00:19:39]} {[%emt 00:00:21]} Nbd7 {[%clk 00:19:16]} {[%emt 00:00:03]} 11. a3
{[%clk 00:19:18]} {[%emt 00:00:31]} O-O {[%clk 00:18:51]} {[%emt 00:00:36]} 12.
Bd3 {[%clk 00:18:57]} {[%emt 00:00:30]} Bg6 {[%clk 00:18:28]} {[%emt 00:00:33]}
13. Bxf6 {[%clk 00:17:36]} {[%emt 00:01:32]} Nxf6 {[%clk 00:18:27]} {[%emt
00:00:10]} 14. Ne5 {[%clk 00:17:41]} {[%emt 00:00:05]} Bxd3 {[%clk 00:17:06]}
{[%emt 00:01:32]} 15. Qxd3 {[%clk 00:17:17]} {[%emt 00:00:34]} c5 {[%clk
00:16:36]} {[%emt 00:00:39]} 16. Nb5 {[%clk 00:16:57]} {[%emt 00:00:31]} Qb6
{[%clk 00:15:37]} {[%emt 00:01:06]} 17. dxc5 {[%clk 00:16:25]} {[%emt
00:00:45]} Qxc5 {[%clk 00:15:09]} {[%emt 00:00:32]} 18. Nxd6 {[%clk 00:16:06]}
{[%emt 00:00:34]} Rfd8 {[%clk 00:14:50]} {[%emt 00:00:30]} 19. Nxb7 {[%clk
00:15:24]} {[%emt 00:00:52]} Rxd3 {[%clk 00:14:37]} {[%emt 00:00:23]} 20. Nxc5
{[%clk 00:15:31]} {[%emt 00:00:03]} Rd5 {[%clk 00:14:40]} {[%emt 00:00:06]} 21.
Nb3 {[%clk 00:15:14]} {[%emt 00:00:27]} Rc8 {[%clk 00:14:40]} {[%emt 00:00:11]}
22. c3 {[%clk 00:14:52]} {[%emt 00:00:32]} Rb5 {[%clk 00:14:31]} {[%emt
00:00:18]} 23. Nd4 {[%clk 00:14:21]} {[%emt 00:00:41]} Rxb2 {[%clk 00:14:18]}
{[%emt 00:00:23]} 24. Rec1 {[%clk 00:13:47]} {[%emt 00:00:45]} h6 {[%clk
00:14:16]} {[%emt 00:00:11]} 25. c4 {[%clk 00:13:28]} {[%emt 00:00:30]} Ne4
{[%clk 00:14:00]} {[%emt 00:00:24]} 26. Nd3 {[%clk 00:13:14]} {[%emt 00:00:25]}
Rd2 {[%clk 00:13:43]} {[%emt 00:00:25]} 27. Rd1 {[%clk 00:13:06]} {[%emt
00:00:20]} Rxd1+ {[%clk 00:13:29]} {[%emt 00:00:24]} 28. Rxd1 {[%clk 00:13:14]}
{[%emt 00:00:02]} Rxc4 {[%clk 00:13:36]} {[%emt 00:00:03]} 29. Nf3 {[%clk
00:12:45]} {[%emt 00:00:40]} Rc3 {[%clk 00:13:18]} {[%emt 00:00:26]} 30. a4
{[%clk 00:11:20]} {[%emt 00:01:37]} Ra3 {[%clk 00:13:14]} {[%emt 00:00:13]} 31.
Nb2 {[%clk 00:11:12]} {[%emt 00:00:18]} Ra2 {[%clk 00:12:54]} {[%emt 00:00:27]}
32. Nd3 {[%clk 00:11:08]} {[%emt 00:00:18]} Nc3 {[%clk 00:12:48]} {[%emt
00:00:14]} 33. Re1 {[%clk 00:10:27]} {[%emt 00:00:45]} Rxa4 {[%clk 00:12:40]}
{[%emt 00:00:26]} 34. h3 {[%clk 00:10:29]} {[%emt 00:00:08]} Rd4 {[%clk
00:12:09]} {[%emt 00:00:33]} 35. Nde5 {[%clk 00:10:18]} {[%emt 00:00:29]} Ra4
{[%clk 00:11:16]} {[%emt 00:01:02]} 36. Re3 {[%clk 00:09:19]} {[%emt 00:01:09]}
Nd5 {[%clk 00:10:59]} {[%emt 00:00:24]} 37. Rd3 {[%clk 00:09:10]} {[%emt
00:00:22]} a5 {[%clk 00:10:39]} {[%emt 00:00:29]} 38. Nc6 {[%clk 00:09:07]}
{[%emt 00:00:14]} Ra1+ {[%clk 00:10:30]} {[%emt 00:00:19]} 39. Kh2 {[%emt
00:00:03]} a4 {[%emt 00:00:19]} 40. Ncd4 {[%clk 00:09:07]} {[%emt 00:00:07]} a3
{[%clk 00:10:05]} {[%emt 00:00:35]} 41. Nb3 {[%clk 00:09:12]} {[%emt 00:00:06]}
Rb1 {[%clk 00:09:56]} {[%emt 00:00:13]} 42. Nfd2 {[%clk 00:09:14]} {[%emt
00:00:14]} a2 {[%clk 00:09:34]} {[%emt 00:00:31]} 43. Rd4 {[%clk 00:08:46]}
{[%emt 00:00:39]} a1=Q {[%clk 00:09:14]} {[%emt 00:00:30]} 44. Nxa1 {[%clk
00:08:53]} {[%emt 00:00:03]} Rxa1 {[%clk 00:09:21]} {[%emt 00:00:03]} 45. Nb3
{[%clk 00:08:49]} {[%emt 00:00:15]} Ra2 {[%clk 00:09:17]} {[%emt 00:00:12]} 46.
Kg3 {[%clk 00:08:43]} {[%emt 00:00:17]} Ra3 {[%clk 00:09:21]} {[%emt 00:00:05]}
47. Rd3 {[%clk 00:08:49]} {[%emt 00:00:05]} Nb4 {[%clk 00:08:56]} {[%emt
00:00:31]} 48. Rf3 {[%clk 00:08:57]} {[%emt 00:00:07]} Nd5 {[%clk 00:08:56]}
{[%emt 00:00:10]} 49. Nd4 {[%clk 00:08:50]} {[%emt 00:00:17]} Ra4 {[%clk
00:09:00]} {[%emt 00:00:05]} 50. Nc6 {[%clk 00:08:52]} {[%emt 00:00:08]} Ra6
{[%clk 00:08:17]} {[%emt 00:00:53]} 1/2-1/2

[Event "Velká cena Novohradska - A"]
[Site "Nové Hrady, Czech Republic"]
[Date "2024.10.12"]
[Round "5.1"]
[White "Garabik, Marek"]
[Black "Gregor, Alexandr"]
[Result "1/2-1/2"]
[TimeControl "2x20min+10s/tah"]
[WhiteFideId "23717742"]
[BlackFideId "23735813"]
[WhiteElo "1925"]
[BlackElo "1813"]

1. e4 {[%clk 00:20:18]} e5 {[%clk 00:19:54]} {[%emt 00:00:28]} 2. Nf3 {[%clk
00:20:26]} {[%emt 00:00:02]} Nc6 {[%clk 00:20:03]} 3. Bc4 {[%clk 00:20:35]} Nf6
{[%clk 00:20:07]} {[%emt 00:00:07]} 4. d3 {[%clk 00:20:39]} {[%emt 00:00:07]}
h6 {[%clk 00:19:56]} {[%emt 00:00:20]} 5. c3 {[%clk 00:20:43]} {[%emt
00:00:06]} Bc5 {[%clk 00:19:52]} {[%emt 00:00:14]} 6. b4 {[%clk 00:20:35]}
{[%emt 00:00:18]} Bb6 {[%clk 00:19:52]} {[%emt 00:00:10]} 7. a4 {[%clk
00:20:43]} {[%emt 00:00:02]} a6 {[%clk 00:19:39]} {[%emt 00:00:24]} 8. Nbd2
{[%clk 00:20:44]} {[%emt 00:00:08]} O-O {[%clk 00:19:41]} {[%emt 00:00:07]} 9.
O-O {[%clk 00:20:52]} {[%emt 00:00:02]} d6 {[%clk 00:19:47]} {[%emt 00:00:05]}
10. Re1 {[%clk 00:20:59]} {[%emt 00:00:03]} Bg4 {[%clk 00:19:38]} {[%emt
00:00:19]} 11. Nf1 {[%clk 00:21:07]} {[%emt 00:00:02]} Qd7 {[%clk 00:18:44]}
{[%emt 00:01:04]} 12. Be3 {[%clk 00:21:16]} {[%emt 00:00:02]} Bxe3 {[%clk
00:18:40]} {[%emt 00:00:13]} 13. Nxe3 {[%clk 00:21:25]} Be6 {[%clk 00:18:21]}
{[%emt 00:00:30]} 14. Bxe6 {[%clk 00:21:14]} {[%emt 00:00:21]} Qxe6 {[%clk
00:18:14]} {[%emt 00:00:17]} 15. Qc2 {[%clk 00:19:13]} {[%emt 00:02:11]} d5
{[%clk 00:15:18]} {[%emt 00:03:06]} 16. exd5 {[%clk 00:19:06]} {[%emt
00:00:16]} Nxd5 {[%clk 00:15:26]} {[%emt 00:00:03]} 17. Nc4 {[%clk 00:18:24]}
{[%emt 00:00:52]} f6 {[%clk 00:13:37]} {[%emt 00:01:59]} 18. Rad1 {[%clk
00:17:54]} {[%emt 00:00:40]} Qf5 {[%clk 00:11:43]} {[%emt 00:02:04]} 19. Qb3
{[%clk 00:17:39]} {[%emt 00:00:25]} Kh7 {[%clk 00:08:33]} {[%emt 00:03:20]} 20.
Ne3 {[%clk 00:17:27]} {[%emt 00:00:23]} Nxe3 {[%clk 00:08:35]} {[%emt
00:00:08]} 21. fxe3 {[%clk 00:17:36]} e4 {[%clk 00:07:32]} {[%emt 00:01:13]} 22.
Nd4 {[%clk 00:17:31]} {[%emt 00:00:15]} Nxd4 {[%clk 00:06:40]} {[%emt
00:01:02]} 23. cxd4 {[%clk 00:17:40]} exd3 {[%clk 00:06:44]} {[%emt 00:00:07]}
24. Qxd3 {[%clk 00:17:49]} Qxd3 {[%emt 00:00:02]} 25. Rxd3 Rfe8 {[%clk
00:06:34]} {[%emt 00:00:28]} 26. e4 {[%clk 00:16:30]} {[%emt 00:02:02]} Rad8
{[%clk 00:04:12]} {[%emt 00:02:33]} 27. Kf2 {[%clk 00:16:36]} {[%emt 00:00:03]}
b6 {[%clk 00:02:31]} {[%emt 00:01:51]} 28. Kf3 {[%clk 00:16:22]} {[%emt
00:00:23]} c5 {[%clk 00:00:59]} {[%emt 00:01:43]} 29. bxc5 {[%clk 00:16:14]}
{[%emt 00:00:18]} bxc5 {[%clk 00:01:07]} 30. d5 {[%clk 00:16:23]} Re5 {[%clk
00:00:36]} {[%emt 00:00:43]} 31. Rc1 {[%clk 00:16:00]} {[%emt 00:00:32]} f5
{[%clk 00:00:21]} {[%emt 00:00:26]} 32. Rc4 {[%clk 00:14:22]} {[%emt 00:01:48]}
fxe4+ {[%clk 00:00:18]} {[%emt 00:00:13]} 33. Rxe4 {[%clk 00:14:31]} Rexd5
{[%clk 00:00:20]} {[%emt 00:00:09]} 34. Rxd5 {[%clk 00:14:17]} {[%emt
00:00:24]} Rxd5 {[%clk 00:00:29]} 35. Re6 {[%clk 00:14:11]} {[%emt 00:00:16]}
a5 {[%clk 00:00:12]} {[%emt 00:00:26]} 36. Ra6 {[%clk 00:14:16]} {[%emt
00:00:05]} c4 {[%clk 00:00:18]} {[%emt 00:00:05]} 37. Rc6 {[%clk 00:14:25]}
{[%emt 00:00:02]} Rd3+ {[%clk 00:00:17]} {[%emt 00:00:10]} 38. Ke2 {[%clk
00:14:29]} {[%emt 00:00:05]} Rc3 {[%clk 00:00:19]} {[%emt 00:00:08]} 39. Kd2
{[%clk 00:14:06]} {[%emt 00:00:33]} Rd3+ {[%clk 00:00:24]} {[%emt 00:00:06]} 40.
Ke2 {[%clk 00:13:44]} {[%emt 00:00:32]} Rc3 {[%clk 00:00:18]} {[%emt 00:00:16]}
41. h3 {[%clk 00:11:23]} {[%emt 00:02:31]} Rc2+ {[%clk 00:00:12]} {[%emt
00:00:16]} 42. Kf3 {[%clk 00:11:32]} c3 {[%clk 00:00:14]} {[%emt 00:00:10]} 43.
Rc5 {[%clk 00:11:27]} {[%emt 00:00:14]} Ra2 {[%clk 00:00:12]} {[%emt 00:00:12]}
44. Rxa5 {[%clk 00:11:19]} {[%emt 00:00:18]} c2 {[%clk 00:00:20]} {[%emt
00:00:02]} 45. Rc5 {[%clk 00:11:28]} Rxa4 {[%clk 00:00:20]} {[%emt 00:00:12]}
46. Rxc2 {[%clk 00:11:36]} Kg6 {[%clk 00:00:26]} {[%emt 00:00:03]} 47. Rc3
{[%clk 00:11:39]} {[%emt 00:00:07]} Ra2 {[%clk 00:00:13]} {[%emt 00:00:24]} 48.
Rb3 {[%clk 00:11:40]} {[%emt 00:00:10]} Ra4 {[%clk 00:00:13]} {[%emt 00:00:09]}
49. g3 {[%clk 00:11:22]} {[%emt 00:00:28]} Ra6 {[%clk 00:00:14]} {[%emt
00:00:09]} 50. Rb4 {[%clk 00:11:27]} {[%emt 00:00:05]} Kf6 {[%clk 00:00:18]}
{[%emt 00:00:06]} 51. Kf4 {[%clk 00:11:28]} {[%emt 00:00:08]} Rc6 {[%clk
00:00:20]} {[%emt 00:00:09]} 52. h4 {[%clk 00:11:08]} {[%emt 00:00:29]} g5+
{[%clk 00:00:18]} {[%emt 00:00:13]} 53. hxg5+ {[%clk 00:11:17]} {[%emt
00:00:01]} hxg5+ {[%clk 00:00:26]} {[%emt 00:00:02]} 54. Kg4 {[%clk 00:11:25]}
Kg6 {[%clk 00:00:36]} 55. Ra4 {[%clk 00:11:24]} {[%emt 00:00:12]} Rb6 {[%clk
00:00:40]} {[%emt 00:00:05]} 56. Rc4 {[%clk 00:10:39]} {[%emt 00:00:56]} Ra6
{[%clk 00:00:44]} {[%emt 00:00:07]} 57. Rd4 {[%clk 00:10:19]} {[%emt 00:00:29]}
Rb6 {[%clk 00:00:50]} {[%emt 00:00:04]} 58. Re4 {[%clk 00:10:28]} Ra6 {[%clk
00:00:52]} {[%emt 00:00:08]} 59. Rb4 {[%clk 00:10:22]} {[%emt 00:00:17]} Rc6
{[%clk 00:01:00]} {[%emt 00:00:02]} 60. Ra4 {[%clk 00:10:30]} {[%emt 00:00:02]}
Rb6 {[%clk 00:01:09]} 61. Kh3 {[%clk 00:09:38]} {[%emt 00:01:03]} Rc6 {[%clk
00:00:44]} {[%emt 00:00:35]} 62. Ra8 {[%clk 00:08:52]} {[%emt 00:00:55]} Rc3
{[%clk 00:00:18]} {[%emt 00:00:37]} 63. Rg8+ {[%emt 00:00:43]} 1/2-1/2

[Event "Velká cena Novohradska - A"]
[Site "Nové Hrady, Czech Republic"]
[Date "2024.10.12"]
[Round "5.2"]
[White "Postl, František"]
[Black "Šebesta, Marek"]
[Result "1-0"]
[TimeControl "2x20min+10s/tah"]
[WhiteFideId "23709448"]
[BlackFideId "23765119"]
[WhiteElo "1514"]
[BlackElo "1707"]

1. e4 {[%clk 00:20:19]} e5 {[%clk 00:20:19]} {[%emt 00:00:01]} 2. Nf3 {[%clk
00:20:27]} {[%emt 00:00:02]} Nc6 {[%clk 00:20:29]} 3. d4 {[%clk 00:20:36]} exd4
{[%clk 00:20:37]} {[%emt 00:00:03]} 4. c3 {[%clk 00:20:46]} dxc3 {[%clk
00:20:44]} {[%emt 00:00:04]} 5. Bc4 {[%clk 00:20:55]} Nf6 {[%clk 00:20:20]}
{[%emt 00:00:34]} 6. O-O {[%clk 00:20:57]} {[%emt 00:00:08]} d6 {[%clk
00:20:12]} {[%emt 00:00:19]} 7. Nxc3 {[%clk 00:21:03]} {[%emt 00:00:03]} Be7
{[%clk 00:20:21]} 8. h3 {[%clk 00:20:26]} {[%emt 00:00:48]} O-O {[%clk
00:20:26]} {[%emt 00:00:05]} 9. b3 {[%clk 00:20:19]} {[%emt 00:00:17]} Be6
{[%clk 00:20:30]} {[%emt 00:00:05]} 10. Bxe6 {[%clk 00:19:53]} {[%emt
00:00:37]} fxe6 {[%clk 00:20:39]} 11. Ng5 {[%clk 00:20:02]} {[%emt 00:00:03]}
Qd7 {[%clk 00:20:06]} {[%emt 00:00:42]} 12. Bb2 {[%clk 00:19:59]} {[%emt
00:00:13]} h6 {[%clk 00:19:49]} {[%emt 00:00:27]} 13. Nf3 {[%clk 00:20:02]}
{[%emt 00:00:07]} Rad8 {[%clk 00:19:33]} {[%emt 00:00:26]} 14. Qc2 {[%clk
00:19:52]} {[%emt 00:00:20]} Nh5 {[%clk 00:17:31]} {[%emt 00:02:13]} 15. Rad1
{[%clk 00:19:32]} {[%emt 00:00:29]} Nf4 {[%clk 00:17:19]} {[%emt 00:00:21]} 16.
e5 {[%clk 00:17:14]} {[%emt 00:02:29]} d5 {[%clk 00:15:11]} {[%emt 00:02:18]}
17. Kh2 {[%clk 00:16:48]} {[%emt 00:00:36]} Qe8 {[%clk 00:14:28]} {[%emt
00:00:53]} 18. g3 {[%clk 00:16:39]} {[%emt 00:00:20]} Qh5 {[%clk 00:13:33]}
{[%emt 00:01:02]} 19. Ng1 {[%clk 00:15:04]} {[%emt 00:01:47]} Nb4 {[%clk
00:08:58]} {[%emt 00:04:45]} 20. Qb1 {[%clk 00:14:38]} {[%emt 00:00:36]} Ng6
{[%clk 00:07:28]} {[%emt 00:01:36]} 21. g4 {[%clk 00:14:12]} {[%emt 00:00:40]}
Qxe5+ {[%clk 00:07:22]} {[%emt 00:00:16]} 22. Kh1 {[%clk 00:13:57]} {[%emt
00:00:24]} Qg5 {[%clk 00:04:59]} {[%emt 00:02:31]} 23. Bc1 {[%clk 00:13:54]}
{[%emt 00:00:16]} Qf6 {[%clk 00:04:47]} {[%emt 00:00:20]} 24. Nb5 {[%clk
00:12:22]} {[%emt 00:01:44]} c6 {[%clk 00:04:05]} {[%emt 00:00:52]} 25. Nd4
{[%clk 00:12:30]} {[%emt 00:00:03]} Nf4 {[%clk 00:03:10]} {[%emt 00:01:05]} 26.
Bxf4 {[%clk 00:12:15]} {[%emt 00:00:24]} e5 {[%clk 00:02:38]} {[%emt 00:00:43]}
27. Bxe5 {[%clk 00:11:13]} {[%emt 00:01:11]} Qxe5 {[%clk 00:02:46]} 28. Ngf3
{[%clk 00:11:16]} {[%emt 00:00:07]} Qc7 {[%clk 00:02:29]} {[%emt 00:00:28]} 29.
Ne6 {[%clk 00:10:59]} {[%emt 00:00:27]} Qd7 {[%clk 00:01:41]} {[%emt 00:00:58]}
30. Nfd4 {[%clk 00:10:30]} {[%emt 00:00:39]} c5 {[%clk 00:01:23]} {[%emt
00:00:27]} 31. Qg6 {[%clk 00:09:31]} {[%emt 00:01:10]} Bd6 {[%clk 00:00:49]}
{[%emt 00:00:45]} 32. Nxf8 {[%clk 00:08:51]} {[%emt 00:00:49]} Rxf8 {[%emt
00:00:23]} 33. Nf5 {[%clk 00:06:30]} {[%emt 00:02:28]} Rf6 {[%clk 00:00:26]}
{[%emt 00:00:23]} 34. Qh5 {[%clk 00:06:26]} {[%emt 00:00:14]} Bc7 {[%clk
00:00:31]} {[%emt 00:00:06]} 35. Rfe1 {[%clk 00:06:23]} {[%emt 00:00:12]} d4
{[%clk 00:00:12]} {[%emt 00:00:29]} 36. Ne7+ {[%clk 00:06:10]} {[%emt
00:00:23]} Kh7 {[%clk 00:00:11]} {[%emt 00:00:10]} 37. Nf5 {[%clk 00:05:25]}
{[%emt 00:00:56]} Qc6+ {[%clk 00:00:20]} 38. Kg1 {[%clk 00:05:17]} {[%emt
00:00:17]} Nc2 {[%clk 00:00:13]} {[%emt 00:00:18]} 39. Re7 {[%clk 00:05:11]}
{[%emt 00:00:16]} Rg6 {[%clk 00:00:18]} {[%emt 00:00:04]} 40. Nh4 {[%clk
00:03:30]} {[%emt 00:01:52]} Rg5 {[%clk 00:00:21]} {[%emt 00:00:07]} 41. Qf7
{[%clk 00:03:22]} {[%emt 00:00:17]} Qd6 {[%clk 00:00:15]} {[%emt 00:00:17]} 42.
Nf3 {[%clk 00:02:50]} {[%emt 00:00:41]} Ne3 {[%clk 00:00:13]} {[%emt 00:00:13]}
43. Rxc7 {[%clk 00:02:01]} {[%emt 00:01:00]} Nxd1 {[%clk 00:00:11]} {[%emt
00:00:12]} 44. Nxg5+ {[%clk 00:02:06]} {[%emt 00:00:04]} hxg5 {[%clk 00:00:20]}
45. Qxg7# {[%emt 00:00:18]} 1-0